[Event "Late-Titled-Tuesday-Blitz-November-28-2023"]
[Site "Chess.com"]
[Date "2023.11.28"]
[Round "6"]
[White "wannabe2700"]
[Black "gabduschew"]
[Result "1-0"]
[WhiteElo "2628"]
[BlackElo "2445"]
[TimeControl "180+1"]
[EndTime "15:03:22 PST"]
[Termination "wannabe2700 won on time"]

1. e4 {[%clk 0:03:00.9]} 1... Nc6 {[%clk 0:02:59.3]} 2. d4 {[%clk 0:03:00]} 2...
d5 {[%clk 0:02:58.1]} 3. e5 {[%clk 0:02:59.5]} 3... Bf5 {[%clk 0:02:57.3]} 4. c3
{[%clk 0:02:58.8]} 4... Qd7 {[%clk 0:02:56.6]} 5. Nd2 {[%clk 0:02:58.1]} 5... f6
{[%clk 0:02:55.4]} 6. f4 {[%clk 0:02:57.7]} 6... h5 {[%clk 0:02:53.8]} 7. Ngf3
{[%clk 0:02:57.3]} 7... h4 {[%clk 0:02:48.3]} 8. Nb3 {[%clk 0:02:54.3]} 8... e6
{[%clk 0:02:47.2]} 9. Be3 {[%clk 0:02:49.9]} 9... h3 {[%clk 0:02:44.1]} 10. g3
{[%clk 0:02:48.2]} 10... Nh6 {[%clk 0:02:43.6]} 11. Qd2 {[%clk 0:02:37.6]} 11...
Be4 {[%clk 0:02:39]} 12. Be2 {[%clk 0:02:36.8]} 12... f5 {[%clk 0:02:29.6]} 13.
O-O {[%clk 0:02:33.7]} 13... Nf7 {[%clk 0:02:28.2]} 14. Ng5 {[%clk 0:02:25.2]}
14... Be7 {[%clk 0:01:49.3]} 15. Nxe4 {[%clk 0:02:23.4]} 15... dxe4 {[%clk
0:01:45.1]} 16. c4 {[%clk 0:02:15]} 16... Rd8 {[%clk 0:01:42]} 17. Rad1 {[%clk
0:02:11.9]} 17... O-O {[%clk 0:01:09.7]} 18. d5 {[%clk 0:02:11.5]} 18... Nb4
{[%clk 0:00:58.7]} 19. d6 {[%clk 0:02:09.7]} 19... cxd6 {[%clk 0:00:54.6]} 20.
Qxb4 {[%clk 0:02:08.7]} 20... dxe5 {[%clk 0:00:50.2]} 21. Rxd7 {[%clk
0:02:05.6]} 21... Bxb4 {[%clk 0:00:49.3]} 22. Rxb7 {[%clk 0:02:05.1]} 22... Bd6
{[%clk 0:00:44.6]} 23. c5 {[%clk 0:02:02.2]} 23... Bb8 {[%clk 0:00:44]} 24. c6
{[%clk 0:02:00.2]} 24... Rc8 {[%clk 0:00:32.1]} 25. Rc1 {[%clk 0:01:58.4]} 25...
exf4 {[%clk 0:00:24.9]} 26. gxf4 {[%clk 0:01:56.1]} 26... Rc7 {[%clk 0:00:07.8]}
27. Rxc7 {[%clk 0:01:48.8]} 27... Bxc7 {[%clk 0:00:07.7]} 28. Nc5 {[%clk
0:01:45.2]} 28... Re8 {[%clk 0:00:06]} 29. Na6 {[%clk 0:01:43.7]} 29... Rc8
{[%clk 0:00:02.8]} 30. Bxa7 {[%clk 0:01:42.1]} 30... Bxf4 {[%clk 0:00:02.1]} 31.
Rc4 {[%clk 0:01:38.8]} 31... Nd6 {[%clk 0:00:01.7]} 32. Rc2 {[%clk 0:01:38.3]}
32... Nb5 {[%clk 0:00:01.5]} 33. Bxb5 {[%clk 0:01:36.8]} 1-0

[Event "Late-Titled-Tuesday-Blitz-November-28-2023"]
[Site "Chess.com"]
[Date "2023.11.28"]
[Round "6"]
[White "JaackCamel"]
[Black "maurovargas01"]
[Result "1-0"]
[WhiteElo "2040"]
[BlackElo "1836"]
[TimeControl "180+1"]
[EndTime "15:03:24 PST"]
[Termination "JaackCamel won on time"]

1. d4 {[%clk 0:03:00.9]} 1... d5 {[%clk 0:02:41.2]} 2. c4 {[%clk 0:03:00.5]}
2... c6 {[%clk 0:02:41.2]} 3. cxd5 {[%clk 0:03:00.2]} 3... cxd5 {[%clk
0:02:36.6]} 4. Bf4 {[%clk 0:02:59.9]} 4... Nc6 {[%clk 0:02:37.2]} 5. e3 {[%clk
0:02:59.8]} 5... h5 {[%clk 0:02:34.6]} 6. Nc3 {[%clk 0:02:55.4]} 6... e5 {[%clk
0:02:33.7]} 7. dxe5 {[%clk 0:02:52.5]} 7... g5 {[%clk 0:02:28.2]} 8. Bxg5 {[%clk
0:02:19.8]} 8... Qxg5 {[%clk 0:02:26.8]} 9. f4 {[%clk 0:02:15.9]} 9... Qh4+
{[%clk 0:02:23.7]} 10. g3 {[%clk 0:02:14.1]} 10... Qd8 {[%clk 0:02:21.6]} 11.
Nxd5 {[%clk 0:02:03.3]} 11... Bg4 {[%clk 0:02:13.2]} 12. Qb3 {[%clk 0:01:54.5]}
12... Be6 {[%clk 0:02:05.3]} 13. Bg2 {[%clk 0:01:51.4]} 13... Qa5+ {[%clk
0:01:53]} 14. Kf2 {[%clk 0:01:49.3]} 14... O-O-O {[%clk 0:01:51.6]} 15. Rd1
{[%clk 0:01:43.7]} 15... Nge7 {[%clk 0:01:37.4]} 16. Nxe7+ {[%clk 0:01:42.8]}
16... Bxe7 {[%clk 0:01:36.5]} 17. Qc2 {[%clk 0:01:29.7]} 17... Qxa2 {[%clk
0:01:21.2]} 18. Rxd8+ {[%clk 0:01:26.3]} 18... Rxd8 {[%clk 0:01:16.2]} 19. Bxc6
{[%clk 0:01:20.1]} 19... bxc6 {[%clk 0:00:54]} 20. Qxc6+ {[%clk 0:01:19]} 20...
Kb8 {[%clk 0:00:53.7]} 21. Qb5+ {[%clk 0:01:16.6]} 21... Kc7 {[%clk 0:00:48.6]}
22. Ne2 {[%clk 0:01:14.6]} 22... Rd5 {[%clk 0:00:01.4]} 23. Rc1+ {[%clk
0:01:07.7]} 1-0

[Event "Late-Titled-Tuesday-Blitz-November-28-2023"]
[Site "Chess.com"]
[Date "2023.11.28"]
[Round "6"]
[White "kxt100"]
[Black "Mikhal867"]
[Result "0-1"]
[WhiteElo "2249"]
[BlackElo "2409"]
[TimeControl "180+1"]
[EndTime "15:03:29 PST"]
[Termination "Mikhal867 won by resignation"]

1. d4 {[%clk 0:03:00.9]} 1... Nf6 {[%clk 0:02:55.6]} 2. c4 {[%clk 0:03:01.4]}
2... g6 {[%clk 0:02:55.5]} 3. Nc3 {[%clk 0:03:01.2]} 3... Bg7 {[%clk 0:02:56.1]}
4. e4 {[%clk 0:03:01.4]} 4... O-O {[%clk 0:02:56]} 5. Nge2 {[%clk 0:03:02]} 5...
d6 {[%clk 0:02:56.4]} 6. f3 {[%clk 0:03:02.6]} 6... a6 {[%clk 0:02:55.4]} 7. Be3
{[%clk 0:03:02.6]} 7... Nc6 {[%clk 0:02:55.4]} 8. Qd2 {[%clk 0:03:00.8]} 8...
Re8 {[%clk 0:02:52.6]} 9. g4 {[%clk 0:02:55.5]} 9... Bd7 {[%clk 0:02:48]} 10.
Ng3 {[%clk 0:02:52.6]} 10... e5 {[%clk 0:02:47.3]} 11. d5 {[%clk 0:02:51.4]}
11... Nd4 {[%clk 0:02:46.2]} 12. Be2 {[%clk 0:02:48.4]} 12... c5 {[%clk
0:02:42]} 13. h4 {[%clk 0:02:47.1]} 13... b5 {[%clk 0:02:34.5]} 14. Kf2 {[%clk
0:02:45.7]} 14... Rb8 {[%clk 0:02:23.8]} 15. h5 {[%clk 0:02:42.8]} 15... Rf8
{[%clk 0:02:15.6]} 16. cxb5 {[%clk 0:02:34.8]} 16... axb5 {[%clk 0:02:15.2]} 17.
Kg2 {[%clk 0:02:32.9]} 17... c4 {[%clk 0:02:05.7]} 18. Bh6 {[%clk 0:02:21.4]}
18... b4 {[%clk 0:01:45.6]} 19. Nd1 {[%clk 0:02:17.5]} 19... Qa5 {[%clk
0:01:14.5]} 20. Bxg7 {[%clk 0:02:14.2]} 20... Kxg7 {[%clk 0:01:13]} 21. hxg6
{[%clk 0:02:13.8]} 21... fxg6 {[%clk 0:01:13.3]} 22. Qh6+ {[%clk 0:02:12.4]}
22... Kf7 {[%clk 0:01:13.2]} 23. g5 {[%clk 0:02:12.2]} 23... Ne8 {[%clk
0:01:12.2]} 24. Bxc4 {[%clk 0:01:40.8]} 24... Rc8 {[%clk 0:01:12]} 25. Ne3
{[%clk 0:01:36.5]} 25... b3 {[%clk 0:01:08.6]} 26. Rhd1 {[%clk 0:01:31.4]} 26...
Nc2 {[%clk 0:00:58.2]} 27. Nxc2 {[%clk 0:01:05.1]} 27... bxc2 {[%clk 0:00:57.6]}
28. Rf1 {[%clk 0:00:59.2]} 28... Rxc4 {[%clk 0:00:54.1]} 29. Qxh7+ {[%clk
0:00:56.9]} 29... Ng7 {[%clk 0:00:53.3]} 30. Nh5 {[%clk 0:00:56.9]} 30... gxh5
{[%clk 0:00:50.5]} 31. g6+ {[%clk 0:00:55.3]} 31... Kf6 {[%clk 0:00:50.5]} 32.
f4 {[%clk 0:00:55.4]} 32... Qd2+ {[%clk 0:00:47.7]} 33. Kh1 {[%clk 0:00:52.7]}
33... exf4 {[%clk 0:00:45.7]} 34. Qh6 {[%clk 0:00:50.1]} 34... c1=Q {[%clk
0:00:41.5]} 35. Raxc1 {[%clk 0:00:49.1]} 35... Rxc1 {[%clk 0:00:41.5]} 0-1

[Event "Late-Titled-Tuesday-Blitz-November-28-2023"]
[Site "Chess.com"]
[Date "2023.11.28"]
[Round "6"]
[White "CheckThis4"]
[Black "koncheto"]
[Result "1-0"]
[WhiteElo "2721"]
[BlackElo "2520"]
[TimeControl "180+1"]
[EndTime "15:04:10 PST"]
[Termination "CheckThis4 won on time"]

1. d4 {[%clk 0:03:00.9]} 1... Nf6 {[%clk 0:03:00.1]} 2. Nc3 {[%clk 0:03:01]}
2... d5 {[%clk 0:02:59.9]} 3. Bf4 {[%clk 0:03:01.1]} 3... a6 {[%clk 0:02:59.4]}
4. e4 {[%clk 0:02:58.2]} 4... dxe4 {[%clk 0:02:56.4]} 5. f3 {[%clk 0:02:58.3]}
5... exf3 {[%clk 0:02:52.4]} 6. Nxf3 {[%clk 0:02:57.9]} 6... Bf5 {[%clk
0:02:48.3]} 7. Ne5 {[%clk 0:02:52.2]} 7... e6 {[%clk 0:02:48.1]} 8. Be2 {[%clk
0:02:27.8]} 8... Nbd7 {[%clk 0:02:27.7]} 9. Bf3 {[%clk 0:02:20.4]} 9... c6
{[%clk 0:02:17.6]} 10. Qe2 {[%clk 0:02:09.3]} 10... Bb4 {[%clk 0:02:09.3]} 11.
g4 {[%clk 0:01:57.9]} 11... Bg6 {[%clk 0:01:55.2]} 12. h4 {[%clk 0:01:54.2]}
12... Nxe5 {[%clk 0:01:16.4]} 13. dxe5 {[%clk 0:01:44.7]} 13... Qd4 {[%clk
0:01:16.2]} 14. exf6 {[%clk 0:01:28.1]} 14... Qxf4 {[%clk 0:01:11.5]} 15. fxg7
{[%clk 0:01:25.8]} 15... Rg8 {[%clk 0:01:10.3]} 16. h5 {[%clk 0:01:22.1]} 16...
Bxc2 {[%clk 0:01:09.8]} 17. O-O {[%clk 0:00:50.7]} 17... Qg3+ {[%clk 0:00:45.7]}
18. Kh1 {[%clk 0:00:50.4]} 18... Bxc3 {[%clk 0:00:24.9]} 19. bxc3 {[%clk
0:00:40.6]} 19... Ba4 {[%clk 0:00:14.8]} 20. h6 {[%clk 0:00:30.2]} 20... O-O-O
{[%clk 0:00:12.9]} 21. Qh2 {[%clk 0:00:23.7]} 21... Qxh2+ {[%clk 0:00:07.2]} 22.
Kxh2 {[%clk 0:00:24.6]} 22... Rd3 {[%clk 0:00:06.6]} 23. Be4 {[%clk 0:00:22.9]}
23... Rd2+ {[%clk 0:00:02.7]} 24. Kg3 {[%clk 0:00:18.7]} 1-0

[Event "Late-Titled-Tuesday-Blitz-November-28-2023"]
[Site "Chess.com"]
[Date "2023.11.28"]
[Round "6"]
[White "PoXerStar"]
[Black "Mikhail_Golubev"]
[Result "0-1"]
[WhiteElo "2406"]
[BlackElo "2596"]
[TimeControl "180+1"]
[EndTime "15:04:11 PST"]
[Termination "Mikhail_Golubev won on time"]

1. e4 {[%clk 0:03:00.9]} 1... c5 {[%clk 0:02:59.3]} 2. Nf3 {[%clk 0:03:00.9]}
2... d6 {[%clk 0:02:59.5]} 3. d4 {[%clk 0:03:01.5]} 3... cxd4 {[%clk 0:02:59.6]}
4. Nxd4 {[%clk 0:03:02.4]} 4... Nf6 {[%clk 0:02:59.6]} 5. Nc3 {[%clk 0:03:03.1]}
5... Nc6 {[%clk 0:02:59.9]} 6. Bc4 {[%clk 0:03:02.3]} 6... e6 {[%clk 0:02:59.4]}
7. Bb3 {[%clk 0:03:02.6]} 7... a6 {[%clk 0:02:59]} 8. O-O {[%clk 0:03:02.1]}
8... Na5 {[%clk 0:02:54.6]} 9. f4 {[%clk 0:02:58.5]} 9... Qc7 {[%clk 0:02:54.1]}
10. f5 {[%clk 0:02:47.4]} 10... e5 {[%clk 0:02:52.3]} 11. Nde2 {[%clk
0:02:41.1]} 11... Nxb3 {[%clk 0:02:44.1]} 12. axb3 {[%clk 0:02:40.6]} 12... b5
{[%clk 0:02:41.2]} 13. Bg5 {[%clk 0:02:38.3]} 13... Bb7 {[%clk 0:02:35.3]} 14.
Bxf6 {[%clk 0:02:34]} 14... gxf6 {[%clk 0:02:35.2]} 15. Kh1 {[%clk 0:02:30.9]}
15... Qc5 {[%clk 0:02:30.5]} 16. Ng3 {[%clk 0:02:10.9]} 16... h5 {[%clk
0:02:20.7]} 17. Nxh5 {[%clk 0:02:04.2]} 17... Be7 {[%clk 0:02:13.8]} 18. Ng3
{[%clk 0:01:36.1]} 18... Rc8 {[%clk 0:01:41.8]} 19. Rc1 {[%clk 0:01:13.1]} 19...
Bf8 {[%clk 0:01:34.6]} 20. Nh5 {[%clk 0:01:01.5]} 20... Ke7 {[%clk 0:01:34]} 21.
Qf3 {[%clk 0:00:41.7]} 21... Bh6 {[%clk 0:01:12.7]} 22. Rcd1 {[%clk 0:00:39.6]}
22... b4 {[%clk 0:01:06.7]} 23. Nd5+ {[%clk 0:00:33.2]} 23... Bxd5 {[%clk
0:01:06.4]} 24. Rxd5 {[%clk 0:00:34.1]} 24... Qxc2 {[%clk 0:01:06.2]} 25. g3
{[%clk 0:00:18.5]} 25... Qxb2 {[%clk 0:00:57]} 26. Rf2 {[%clk 0:00:11.7]} 26...
Rc2 {[%clk 0:00:43.8]} 27. Rxc2 {[%clk 0:00:08.5]} 27... Qxc2 {[%clk 0:00:44.7]}
28. Qd3 {[%clk 0:00:02.2]} 28... Qxd3 {[%clk 0:00:41.3]} 29. Rxd3 {[%clk
0:00:03.1]} 29... Rc8 {[%clk 0:00:40.6]} 30. g4 {[%clk 0:00:01.8]} 30... Rc3
{[%clk 0:00:39.7]} 31. Rd1 {[%clk 0:00:01.1]} 31... Rxb3 {[%clk 0:00:38]} 0-1

[Event "Late-Titled-Tuesday-Blitz-November-28-2023"]
[Site "Chess.com"]
[Date "2023.11.28"]
[Round "6"]
[White "gmpeter008"]
[Black "Sic_Transit_GM"]
[Result "0-1"]
[WhiteElo "2506"]
[BlackElo "2693"]
[TimeControl "180+1"]
[EndTime "15:04:14 PST"]
[Termination "Sic_Transit_GM won on time"]

1. d4 {[%clk 0:03:00.9]} 1... g6 {[%clk 0:03:00.9]} 2. c4 {[%clk 0:02:58.4]}
2... Bg7 {[%clk 0:03:01]} 3. Nf3 {[%clk 0:02:59.1]} 3... Nf6 {[%clk 0:03:01.1]}
4. e3 {[%clk 0:02:59.6]} 4... O-O {[%clk 0:03:01.8]} 5. Be2 {[%clk 0:03:00.1]}
5... d6 {[%clk 0:03:02.4]} 6. O-O {[%clk 0:03:00.6]} 6... Nbd7 {[%clk 0:03:03]}
7. b3 {[%clk 0:03:00.6]} 7... e5 {[%clk 0:03:03.1]} 8. Bb2 {[%clk 0:03:01]} 8...
Qe7 {[%clk 0:03:01]} 9. Nc3 {[%clk 0:03:00.7]} 9... Re8 {[%clk 0:02:59.5]} 10.
Rc1 {[%clk 0:02:58.2]} 10... e4 {[%clk 0:02:59.1]} 11. Nd2 {[%clk 0:02:57.7]}
11... Nf8 {[%clk 0:02:58.2]} 12. Re1 {[%clk 0:02:55.4]} 12... h5 {[%clk
0:02:57.6]} 13. f4 {[%clk 0:02:48.9]} 13... Bg4 {[%clk 0:02:54.3]} 14. Bxg4
{[%clk 0:02:45.1]} 14... hxg4 {[%clk 0:02:54.1]} 15. Nd5 {[%clk 0:02:39.9]}
15... Nxd5 {[%clk 0:02:53.3]} 16. cxd5 {[%clk 0:02:40.8]} 16... Nh7 {[%clk
0:02:50.6]} 17. Qxg4 {[%clk 0:02:37.1]} 17... Nf6 {[%clk 0:02:50.1]} 18. Qg5
{[%clk 0:02:32.2]} 18... Kh7 {[%clk 0:02:49.8]} 19. g4 {[%clk 0:01:48.8]} 19...
Rac8 {[%clk 0:02:34.5]} 20. Ba3 {[%clk 0:01:19.2]} 20... Qd7 {[%clk 0:02:32.6]}
21. h3 {[%clk 0:01:07.2]} 21... Qb5 {[%clk 0:02:32.5]} 22. f5 {[%clk 0:00:57.2]}
22... Qxd5 {[%clk 0:02:25.1]} 23. Rf1 {[%clk 0:00:54.2]} 23... Bh6 {[%clk
0:02:05.3]} 24. Qh4 {[%clk 0:00:05.4]} 24... g5 {[%clk 0:02:03]} 25. Qg3 {[%clk
0:00:05.4]} 25... a5 {[%clk 0:01:55.1]} 26. Nc4 {[%clk 0:00:05.5]} 26... Ra8
{[%clk 0:01:46.5]} 27. Bb2 {[%clk 0:00:05.3]} 27... b5 {[%clk 0:01:38.5]} 28.
Nd2 {[%clk 0:00:05.4]} 28... Re7 {[%clk 0:01:37.7]} 29. Rc2 {[%clk 0:00:02.7]}
29... a4 {[%clk 0:01:36]} 30. b4 {[%clk 0:00:02.2]} 30... Qxa2 {[%clk
0:01:30.9]} 31. d5 {[%clk 0:00:01.9]} 31... Nxd5 {[%clk 0:01:30.9]} 32. f6
{[%clk 0:00:01.8]} 32... Re6 {[%clk 0:01:27.4]} 33. Qf2 {[%clk 0:00:02.3]} 33...
Nxb4 {[%clk 0:01:06.4]} 34. Qf5+ {[%clk 0:00:02.6]} 34... Kg8 {[%clk 0:01:06.4]}
35. Rxc7 {[%clk 0:00:02.8]} 35... Rf8 {[%clk 0:00:41.9]} 36. Rxf7 {[%clk
0:00:02.1]} 36... Rxf7 {[%clk 0:00:42.8]} 37. Qxe6 {[%clk 0:00:02.3]} 37... Qxe6
{[%clk 0:00:41.9]} 0-1

[Event "Late-Titled-Tuesday-Blitz-November-28-2023"]
[Site "Chess.com"]
[Date "2023.11.28"]
[Round "6"]
[White "hristos03"]
[Black "TimGrutter03"]
[Result "0-1"]
[WhiteElo "2369"]
[BlackElo "2544"]
[TimeControl "180+1"]
[EndTime "15:04:16 PST"]
[Termination "TimGrutter03 won by resignation"]

1. e4 {[%clk 0:02:59]} 1... g6 {[%clk 0:03:00.9]} 2. Nf3 {[%clk 0:02:57.5]} 2...
Bg7 {[%clk 0:03:01.8]} 3. Bc4 {[%clk 0:02:56]} 3... d6 {[%clk 0:03:02.7]} 4. O-O
{[%clk 0:02:55.4]} 4... Nc6 {[%clk 0:03:01.9]} 5. h3 {[%clk 0:02:54]} 5... Nf6
{[%clk 0:03:00.2]} 6. d3 {[%clk 0:02:50.5]} 6... O-O {[%clk 0:02:59.1]} 7. Nc3
{[%clk 0:02:50.4]} 7... Na5 {[%clk 0:02:58.6]} 8. Bb3 {[%clk 0:02:47.3]} 8... c5
{[%clk 0:02:57]} 9. Be3 {[%clk 0:02:34]} 9... a6 {[%clk 0:02:54.6]} 10. e5
{[%clk 0:02:22.4]} 10... Ne8 {[%clk 0:02:41.5]} 11. Qe2 {[%clk 0:02:00.6]} 11...
b5 {[%clk 0:02:36.3]} 12. exd6 {[%clk 0:01:43.9]} 12... exd6 {[%clk 0:02:29.7]}
13. Bd5 {[%clk 0:01:34.7]} 13... Ra7 {[%clk 0:02:24.6]} 14. Bg5 {[%clk
0:01:31.3]} 14... Nf6 {[%clk 0:02:13]} 15. Ne4 {[%clk 0:01:23.8]} 15... Bb7
{[%clk 0:02:01.3]} 16. Bxb7 {[%clk 0:01:14.3]} 16... Rxb7 {[%clk 0:02:02.2]} 17.
Rfe1 {[%clk 0:01:11]} 17... Nc6 {[%clk 0:01:48.8]} 18. a3 {[%clk 0:00:47.6]}
18... Kh8 {[%clk 0:01:27.9]} 19. Nxf6 {[%clk 0:00:28.8]} 19... Bxf6 {[%clk
0:01:28.8]} 20. Bh6 {[%clk 0:00:29.1]} 20... Re7 {[%clk 0:01:20.2]} 21. Qd2
{[%clk 0:00:21.7]} 21... Rfe8 {[%clk 0:01:16.7]} 22. Rxe7 {[%clk 0:00:20.6]}
22... Rxe7 {[%clk 0:01:17.6]} 23. Bg5 {[%clk 0:00:14.3]} 23... Re6 {[%clk
0:01:13.6]} 24. Bxf6+ {[%clk 0:00:07.4]} 24... Qxf6 {[%clk 0:01:14.5]} 25. c3
{[%clk 0:00:04.7]} 25... Ne5 {[%clk 0:01:10.1]} 26. Nxe5 {[%clk 0:00:04.5]}
26... Qxe5 {[%clk 0:01:07.5]} 27. g3 {[%clk 0:00:04.2]} 27... Qe2 {[%clk
0:01:06.3]} 28. Rd1 {[%clk 0:00:04.4]} 28... Qf3 {[%clk 0:01:05]} 29. Re1 {[%clk
0:00:02.8]} 29... Rxe1+ {[%clk 0:01:02.4]} 30. Qxe1 {[%clk 0:00:03.7]} 30...
Qxd3 {[%clk 0:01:02.9]} 31. Qe7 {[%clk 0:00:03.8]} 31... Kg7 {[%clk 0:01:02.8]}
32. Qb7 {[%clk 0:00:03.3]} 32... Qb1+ {[%clk 0:01:01]} 33. Kg2 {[%clk
0:00:03.1]} 33... Qxb2 {[%clk 0:01:01.5]} 34. Qxa6 {[%clk 0:00:03.5]} 34... Qxc3
{[%clk 0:01:01.1]} 35. Qxd6 {[%clk 0:00:03.8]} 35... b4 {[%clk 0:00:56.9]} 36.
axb4 {[%clk 0:00:04]} 36... cxb4 {[%clk 0:00:57.8]} 37. h4 {[%clk 0:00:03.9]}
37... h5 {[%clk 0:00:56.6]} 38. g4 {[%clk 0:00:03.1]} 38... hxg4 {[%clk
0:00:56.4]} 39. h5 {[%clk 0:00:02.9]} 39... gxh5 {[%clk 0:00:54.3]} 40. Qd5
{[%clk 0:00:03.1]} 40... Qf3+ {[%clk 0:00:52.1]} 41. Kh2 {[%clk 0:00:02.2]}
41... Qxd5 {[%clk 0:00:51]} 0-1

[Event "Late-Titled-Tuesday-Blitz-November-28-2023"]
[Site "Chess.com"]
[Date "2023.11.28"]
[Round "6"]
[White "ChristopherYoo"]
[Black "djano"]
[Result "1-0"]
[WhiteElo "3022"]
[BlackElo "2583"]
[TimeControl "180+1"]
[EndTime "15:04:18 PST"]
[Termination "ChristopherYoo won by resignation"]

1. d4 {[%clk 0:03:00.9]} 1... d5 {[%clk 0:02:58.7]} 2. c4 {[%clk 0:03:01.4]}
2... e6 {[%clk 0:02:58.3]} 3. Nc3 {[%clk 0:03:02.1]} 3... c5 {[%clk 0:02:58.4]}
4. cxd5 {[%clk 0:03:01.8]} 4... cxd4 {[%clk 0:02:58.8]} 5. Qa4+ {[%clk
0:02:58.1]} 5... Bd7 {[%clk 0:02:58.6]} 6. Qxd4 {[%clk 0:02:57.9]} 6... exd5
{[%clk 0:02:59]} 7. Qxd5 {[%clk 0:02:56.7]} 7... Nf6 {[%clk 0:02:57.7]} 8. Qd1
{[%clk 0:02:46.1]} 8... Bc5 {[%clk 0:02:56.6]} 9. Nf3 {[%clk 0:02:43]} 9... Nc6
{[%clk 0:02:50.5]} 10. e3 {[%clk 0:02:41.5]} 10... Qe7 {[%clk 0:02:46.4]} 11.
Be2 {[%clk 0:02:40.9]} 11... O-O-O {[%clk 0:02:45.8]} 12. O-O {[%clk 0:02:34.7]}
12... g5 {[%clk 0:02:43.7]} 13. Nd4 {[%clk 0:02:13.9]} 13... g4 {[%clk
0:02:33.6]} 14. Bd2 {[%clk 0:02:02.1]} 14... h5 {[%clk 0:02:31.9]} 15. Rc1
{[%clk 0:02:00.8]} 15... Kb8 {[%clk 0:02:31.9]} 16. Bb5 {[%clk 0:01:35.9]} 16...
Ne5 {[%clk 0:02:11]} 17. Qb3 {[%clk 0:01:27]} 17... Bc8 {[%clk 0:01:37.5]} 18.
Na4 {[%clk 0:01:16.2]} 18... Bd6 {[%clk 0:01:28.6]} 19. Ba6 {[%clk 0:01:03]}
19... Ka8 {[%clk 0:00:56]} 20. Rxc8+ {[%clk 0:01:00.3]} 20... Rxc8 {[%clk
0:00:56.5]} 21. Nf5 {[%clk 0:01:00.9]} 21... Qc7 {[%clk 0:00:25]} 22. Bxb7+
{[%clk 0:00:59.8]} 22... Qxb7 {[%clk 0:00:23.7]} 23. Qxb7+ {[%clk 0:01:00.4]}
23... Kxb7 {[%clk 0:00:24.6]} 24. Nxd6+ {[%clk 0:01:00.9]} 24... Kb8 {[%clk
0:00:16.7]} 25. Nxc8 {[%clk 0:01:00.6]} 25... Rxc8 {[%clk 0:00:17.6]} 26. Bc3
{[%clk 0:01:00.8]} 26... Nfd7 {[%clk 0:00:16.6]} 27. Rd1 {[%clk 0:01:01.4]}
27... f6 {[%clk 0:00:12.7]} 28. Kf1 {[%clk 0:00:58.7]} 28... Kc7 {[%clk
0:00:12.5]} 29. Ke2 {[%clk 0:00:57.4]} 29... Rg8 {[%clk 0:00:11.3]} 30. Rd5
{[%clk 0:00:56.7]} 30... h4 {[%clk 0:00:10.6]} 31. Ra5 {[%clk 0:00:51]} 31...
Kb8 {[%clk 0:00:08.1]} 32. Nc5 {[%clk 0:00:48.1]} 32... g3 {[%clk 0:00:06.2]}
33. hxg3 {[%clk 0:00:46.7]} 33... hxg3 {[%clk 0:00:05.8]} 34. f4 {[%clk
0:00:45.9]} 34... Nxc5 {[%clk 0:00:05.6]} 35. fxe5 {[%clk 0:00:44.9]} 35... Ne4
{[%clk 0:00:03.5]} 36. exf6 {[%clk 0:00:44.6]} 36... Rf8 {[%clk 0:00:03.8]} 37.
Rf5 {[%clk 0:00:44.3]} 37... Nd6 {[%clk 0:00:03.8]} 38. Be5 {[%clk 0:00:43.7]}
38... Kc7 {[%clk 0:00:03.5]} 39. Bxg3 {[%clk 0:00:44.2]} 39... Kd7 {[%clk
0:00:03.8]} 40. Bxd6 {[%clk 0:00:44.7]} 40... Ke6 {[%clk 0:00:03.8]} 41. Bxf8
{[%clk 0:00:44.1]} 1-0

[Event "Late-Titled-Tuesday-Blitz-November-28-2023"]
[Site "Chess.com"]
[Date "2023.11.28"]
[Round "6"]
[White "ckgchess"]
[Black "The_Machine04"]
[Result "1-0"]
[WhiteElo "2863"]
[BlackElo "2666"]
[TimeControl "180+1"]
[EndTime "15:04:22 PST"]
[Termination "ckgchess won on time"]

1. e4 {[%clk 0:03:00.9]} 1... d6 {[%clk 0:02:59.8]} 2. d4 {[%clk 0:03:01.3]}
2... Nf6 {[%clk 0:02:59.2]} 3. Nc3 {[%clk 0:03:02]} 3... e5 {[%clk 0:02:58.4]}
4. Nf3 {[%clk 0:03:02.6]} 4... Nbd7 {[%clk 0:02:58.3]} 5. Rg1 {[%clk 0:03:03.3]}
5... c6 {[%clk 0:02:57.7]} 6. g4 {[%clk 0:03:03.5]} 6... h6 {[%clk 0:02:56.8]}
7. h4 {[%clk 0:03:03.5]} 7... exd4 {[%clk 0:02:56.6]} 8. Qxd4 {[%clk 0:03:00.8]}
8... Qb6 {[%clk 0:02:55.4]} 9. g5 {[%clk 0:02:56.5]} 9... hxg5 {[%clk
0:02:54.6]} 10. hxg5 {[%clk 0:02:57.4]} 10... Ne5 {[%clk 0:02:49.1]} 11. Qd1
{[%clk 0:02:43.7]} 11... Nfg4 {[%clk 0:02:43.1]} 12. Rg2 {[%clk 0:02:23.7]}
12... Rh1 {[%clk 0:02:24.2]} 13. Nxe5 {[%clk 0:01:47.6]} 13... Nxe5 {[%clk
0:02:25.1]} 14. Rg3 {[%clk 0:01:26.4]} 14... Qa6 {[%clk 0:00:57.3]} 15. Qe2
{[%clk 0:01:22.4]} 15... Qxe2+ {[%clk 0:00:56.1]} 16. Nxe2 {[%clk 0:01:22.5]}
16... Bg4 {[%clk 0:00:55.6]} 17. f4 {[%clk 0:01:01.2]} 17... Nf3+ {[%clk
0:00:26.5]} 18. Kf2 {[%clk 0:01:00.4]} 18... Nh2 {[%clk 0:00:24.4]} 19. Bg2
{[%clk 0:00:57]} 19... Rd1 {[%clk 0:00:23.1]} 20. Nc3 {[%clk 0:00:52.9]} 20...
Rd4 {[%clk 0:00:20.5]} 21. Kg1 {[%clk 0:00:41.1]} 21... d5 {[%clk 0:00:17]} 22.
Kxh2 {[%clk 0:00:41.1]} 22... O-O-O {[%clk 0:00:12.4]} 23. Rxg4 {[%clk
0:00:40.7]} 23... dxe4 {[%clk 0:00:11.2]} 24. Nxe4 {[%clk 0:00:40.1]} 24... Rd1
{[%clk 0:00:09.6]} 25. b3 {[%clk 0:00:39.4]} 25... Ba3 {[%clk 0:00:07.5]} 26.
Bxa3 {[%clk 0:00:37.5]} 26... Rxa1 {[%clk 0:00:08.4]} 27. Bb2 {[%clk 0:00:35.3]}
27... Rxa2 {[%clk 0:00:07.6]} 28. Bxg7 {[%clk 0:00:36]} 28... Rxc2 {[%clk
0:00:07.3]} 29. f5 {[%clk 0:00:35.2]} 29... a5 {[%clk 0:00:01]} 30. g6 {[%clk
0:00:33.6]} 30... fxg6 {[%clk 0:00:00.9]} 31. fxg6 {[%clk 0:00:34.5]} 1-0